bitfinex-derivatives/quotes_ETHF0:USTF0_20241207
["timestamp","ask_amount","ask_price","bid_price","bid_amount"]
[1733538630997,1.07401651,3998.6,3998.5,4.56424695]
[1733538631195,1.07401651,3998.6,3998.5,10.42111433]
[1733538631888,0.89921651,3998.6,3998.4,5.85686738]
[1733538632095,0.44941,3998.5,3998.4,5.85686738]
[1733538632294,0.44941,3998.5,3998.4,4.56709946]
[1733538632493,0.44941,3998.5,3998.4,10.42396684]
[1733538632889,0.44941,3998.5,3998.4,4.56709946]
[1733538633092,0.2746,3998.5,3998.1,3.9236]
[1733538633291,1.07403651,3998.2,3998.1,0.7158]
[1733538635297,0.17482,3998.2,3998.1,0.7158]
[1733538637697,0.17484,3997.7,3997.6,3.9644]
[1733538637898,1.07405651,3997.7,3997.6,3.9644]
[1733538640296,1.07405651,3997.7,3997.6,27.43629883]
[1733538642701,1.07405651,3997.7,3997.6,27.43530697]
[1733538643009,0.89921651,3998.0,3997.6,27.44334491]
[1733538643214,1.07404651,3998.0,3997.9,7.81558532]
[1733538643414,1.07404651,3998.0,3997.9,21.52323279]
[1733538643707,1.07404651,3998.0,3997.9,12.38478617]
[1733538644105,1.07404651,3998.0,3997.9,13.7070333]
[1733538644301,1.07404651,3998.0,3997.9,12.38499869]
[1733538644802,0.17483,3998.0,3997.9,13.7076205]
[1733538645212,1.33623651,3998.6,3997.9,13.7076205]
[1733538645415,1.07401651,3998.6,3998.5,5.8598626]
[1733538645702,1.07401651,3998.6,3998.5,10.42906345]
[1733538645904,1.07401651,3998.6,3998.5,4.56920085]
[1733538647802,1.07401651,3998.6,3998.5,4.56791209]
[1733538648002,0.1748,3998.6,3998.5,4.56790632]
[1733538648204,0.1748,3998.6,3998.5,13.70227241]
[1733538648405,0.1748,3998.6,3998.5,0.739]
[1733538649607,1.07401651,3998.6,3998.5,0.739]
[1733538652209,1.30830876,3998.6,3998.5,0.739]
[1733538652713,1.07401651,3998.6,3998.5,0.739]
[1733538653012,0.1748,3998.7,3998.5,0.739]
[1733538653211,0.1748,3998.7,3998.6,3.2078]
[1733538653406,0.89921651,3998.9,3998.6,3.2078]
[1733538653407,0.1748,3998.8,3998.6,3.2078]
[1733538653609,1.07400651,3998.9,3998.6,3.2078]
[1733538653912,0.17478,3999.2,3998.7,0.1748]
[1733538654109,1.07398651,3999.3,3999.1,3.2078]
[1733538654416,1.07398651,3999.3,3999.2,2.321]
[1733538655411,1.07398651,3999.3,3999.2,6.88328511]
[1733538657215,1.07398651,3999.3,3999.2,6.8822348]
[1733538657409,1.07398651,3999.3,3999.2,12.73191605]
[1733538658814,0.17477,3999.3,3999.2,12.73191605]
[1733538659109,0.17477,3999.3,3999.2,6.8822348]
[1733538661025,0.17477,3999.3,3999.2,12.7278726]
[1733538663421,0.17477,3999.3,3999.2,6.88017147]
[1733538663915,0.17477,3999.4,3999.2,6.88017147]
[1733538664120,0.89921651,3999.5,3999.2,2.321]
[1733538664419,0.17477,3999.3,3999.2,2.321]
[1733538664826,0.89921651,3999.5,3999.2,2.321]
[1733538665219,0.17477,3999.4,3999.2,2.321]
[1733538665622,0.17477,3999.3,3999.2,2.321]
[1733538665819,0.17477,3999.3,3999.2,6.87823265]
[1733538666423,0.17477,3999.3,3999.2,2.321]
[1733538675631,0.17477,3999.3,3998.7,0.89921651]
[1733538675632,0.17479,3998.8,3998.7,3.2078]
[1733538675832,0.17479,3998.8,3998.7,3.9634]
[1733538676232,0.17479,3998.8,3998.7,0.7556]
[1733538676627,0.17481,3998.4,3998.2,0.7226]
[1733538676837,0.17482,3998.3,3998.2,0.7226]
[1733538681235,0.40912,3998.3,3998.2,0.7226]
[1733538684442,0.17482,3998.3,3998.2,0.7226]
[1733538688939,0.17482,3998.3,3998.2,11.1276167]
[1733538689141,0.17482,3998.3,3998.2,5.28083549]
[1733538690135,0.17482,3998.3,3998.2,11.1287637]
[1733538690342,0.17482,3998.3,3998.2,5.28206876]
[1733538691832,1.07403651,3998.3,3998.2,11.13382664]
[1733538692033,1.07403651,3998.3,3998.2,5.28206876]
[1733538692235,1.07403651,3998.3,3998.2,0.7226]
[1733538699442,0.17482,3998.3,3998.2,0.7226]
[1733538701248,0.40912316,3998.3,3998.2,0.7226]
[1733538702843,0.17482,3998.3,3998.2,0.7226]
[1733538705352,0.17482,3998.3,3998.2,5.27904865]
[1733538705557,0.17482,3998.3,3998.2,11.13080653]
[1733538706045,0.17482,3998.3,3998.2,5.27904865]
[1733538708352,0.17482,3998.3,3998.2,11.13080653]
[1733538708551,0.17482,3998.3,3998.2,0.7226]
[1733538714852,0.17481,3998.6,3998.3,0.17482]
[1733538715058,0.17481,3998.6,3998.4,5.50704568]
[1733538715254,0.17481,3998.6,3998.4,0.94301]
[1733538715453,0.17481,3998.6,3998.5,4.56555975]
[1733538715655,0.17481,3998.6,3998.5,13.69660949]
[1733538718263,0.17481,3998.6,3998.5,13.70574228]
[1733538721763,0.1748,3998.6,3998.5,13.70509789]
[1733538722268,0.89921651,3999.0,3998.5,13.70509789]
[1733538722269,0.1748,3998.7,3998.5,28.32253739]
[1733538722458,0.1748,3998.7,3998.6,17.65239789]
[1733538722762,0.1748,3998.7,3998.6,14.3769904]
[1733538724254,0.1748,3998.7,3998.6,3.9473]
[1733538725060,1.07401651,3998.7,3998.6,0.7395]
[1733538725364,4.01102387,3998.7,3998.6,0.7395]
[1733538726068,1.07401651,3998.7,3998.6,0.7395]
[1733538726265,3.11180736,3998.7,3998.6,0.7395]
[1733538726462,0.1748,3998.7,3998.6,0.7395]
[1733538728363,0.1748,3998.7,3998.4,0.7682]
[1733538728364,3.83622387,3998.8,3998.4,0.7682]
[1733538728562,0.17481,3998.5,3998.4,0.7682]
[1733538728866,1.07402651,3998.5,3998.4,0.7682]
[1733538729869,0.17482,3998.3,3998.2,1.4943]
[1733538730867,0.17482,3998.3,3998.2,15.19607857]
[1733538731065,0.17482,3998.3,3998.2,21.51790413]
[1733538732372,0.17482,3998.3,3998.2,12.38338508]
[1733538733162,0.23430049,3998.4,3998.2,4.56726514]
[1733538733363,0.23430049,3998.4,3998.3,4.56729114]
[1733538733666,1.308327,3998.4,3998.3,10.42921397]
[1733538733867,1.308327,3998.4,3998.3,4.56729114]
[1733538734366,1.308327,3998.4,3998.3,10.42900943]
[1733538735372,1.308327,3998.4,3998.3,5.86171829]
[1733538736068,1.806517,3998.4,3997.6,5.475]
[1733538736271,0.17484,3997.7,3997.6,5.475]
[1733538743083,0.17484,3997.7,3997.6,10.04098226]
[1733538743282,0.17484,3997.7,3997.6,5.475]
[1733538743488,0.17484,3997.7,3997.6,9.38154317]
[1733538744387,0.17484,3997.7,3997.6,10.04054117]
[1733538744888,0.17484,3997.7,3997.6,10.04025735]
[1733538745090,0.17484,3997.7,3997.6,5.475]
[1733538745289,0.17484,3997.7,3997.6,9.38127328]
[1733538745687,0.17484,3997.7,3997.6,28.93730152]
[1733538745986,0.17484,3997.7,3997.6,28.18990152]
[1733538746293,0.84784,3997.7,3997.6,4.565059]
[1733538746586,0.84784,3997.7,3997.6,9.88571648]
[1733538746782,1.82771651,3997.7,3997.4,5.85965748]
[1733538746982,0.17486,3997.4,3997.3,5.85965748]
[1733538747182,1.79843302,3997.5,3997.2,5.85965748]
[1733538747183,0.17486,3997.3,3997.2,5.85965748]
[1733538747384,0.17486,3997.2,3997.0,5.85965748]
[1733538747587,0.17487,3997.1,3997.0,5.85965748]
[1733538747795,0.89921651,3997.2,3996.9,5.85965748]
[1733538747992,1.07408651,3997.0,3996.9,5.85965748]
[1733538748286,0.17488,3996.9,3996.8,3.2078]
[1733538748484,1.07409651,3996.9,3996.8,3.2078]
[1733538749494,1.07409651,3996.9,3996.8,9.06349787]
[1733538750791,1.07409651,3996.9,3996.8,3.2078]
[1733538751992,1.07409651,3996.9,3996.5,5.85569787]
[1733538751993,0.89921651,3996.9,3996.5,5.85569787]
[1733538752188,0.89921651,3996.6,3996.3,3.2078]
[1733538752493,0.1749,3996.4,3996.3,3.2078]
[1733538752691,0.17491,3996.2,3996.1,1.4807]
[1733538752993,1.97334302,3996.2,3996.1,0.7678]
[1733538753597,2.47143302,3996.2,3995.4,3.9492]
[1733538753782,1.07415651,3995.5,3995.4,3.9492]
[1733538761996,1.07415651,3995.5,3995.4,3.2078]
[1733538766496,0.673,3995.9,3995.4,3.2078]
[1733538766698,0.89921651,3995.5,3995.4,3.2078]
[1733538768304,1.07415651,3995.5,3995.4,3.2078]
[1733538769502,0.89921651,3995.5,3995.4,3.2078]
[1733538769706,1.07415651,3995.5,3995.4,3.2078]
[1733538770411,0.89921651,3995.5,3995.4,3.2078]
[1733538771011,1.07415651,3995.5,3995.4,3.2078]
[1733538771908,0.89921651,3995.5,3995.4,3.2078]
[1733538772103,0.89921651,3995.5,3995.4,3.38274]
[1733538772303,0.89921651,3995.6,3995.5,0.17494]
[1733538773305,0.89921651,3995.6,3995.4,3.2078]
[1733538773511,0.89921651,3995.6,3995.5,0.17494]
[1733538774212,0.89921651,3995.6,3995.4,3.2078]
[1733538774412,0.89921651,3995.6,3995.4,3.38274]
[1733538774608,0.89921651,3995.6,3995.5,0.17494]
[1733538775211,0.89921651,3995.6,3995.4,3.2078]
[1733538775713,0.89921651,3995.6,3995.5,0.17494]
[1733538775714,1.07415651,3995.6,3995.5,0.17494]
[1733538775918,0.89921651,3995.6,3995.5,0.17494]
[1733538776619,3.64498,3997.1,3995.4,4.10701651]
[1733538776815,9.24,3998.4,3996.8,3.2078]
[1733538776816,0.17488,3996.9,3996.8,3.2078]
[1733538777613,0.89921651,3997.2,3996.8,3.2078]
[1733538777614,0.17488,3997.0,3996.8,3.2078]
[1733538777813,0.17487,3997.0,3996.9,1.6555]
[1733538778014,0.672,3997.5,3996.9,2.4661]
[1733538778313,0.89921651,3997.0,3996.9,2.64098]
[1733538778514,0.89921651,3997.1,3997.0,0.17487]
[1733538778814,0.672,3998.1,3996.9,5.6739]
[1733538779021,0.89921651,3998.4,3997.8,0.17484]
[1733538779313,0.17483,3998.1,3997.9,0.8456]
[1733538779713,0.17482,3998.2,3997.9,1.02043]
[1733538779917,0.17483,3998.1,3997.9,0.8456]
[1733538780111,0.89921651,3998.0,3997.9,0.8456]
[1733538780713,2.12546876,3998.1,3997.9,0.8456]
[1733538781023,1.95063876,3998.1,3997.9,0.8456]
[1733538781613,1.95063876,3998.1,3998.0,4.0615]
[1733538781917,1.95063876,3998.1,3998.0,4.918]
[1733538782312,2.12545876,3998.1,3998.0,4.918]
[1733538782514,1.95063876,3998.1,3998.0,4.918]
[1733538782719,1.95063876,3998.5,3998.0,4.918]
[1733538782923,2.62263876,3998.9,3998.5,0.17481]
[1733538783221,1.95063876,3998.9,3998.5,0.1748]
[1733538783916,1.95063876,3998.9,3998.4,3.2078]
[1733538784523,1.95063876,3998.9,3998.5,0.1748]
[1733538785225,1.95063876,3998.9,3998.6,0.1748]
[1733538785425,1.95063876,3998.9,3998.4,3.2078]
[1733538785617,1.95063876,3998.9,3998.5,0.17481]
[1733538785817,2.12542876,3998.9,3998.5,0.17481]
[1733538786324,1.95063876,3998.9,3998.5,0.17481]
[1733538786520,2.12542876,3998.9,3998.5,0.17481]
[1733538787125,0.1748,3998.8,3998.4,3.38261]
[1733538787518,1.95063876,3998.5,3998.0,4.918]
[1733538787825,1.95063876,3998.1,3998.0,4.918]
[1733538788525,1.95063876,3998.1,3997.9,0.8456]
[1733538788526,0.17483,3998.0,3997.9,0.8456]
[1733538788918,0.17483,3998.0,3997.6,3.2078]
[1733538789125,0.8726,3998.0,3997.6,3.2078]
[1733538789319,0.17484,3997.8,3997.6,3.2078]
[1733538789622,0.17484,3997.9,3997.6,3.2078]
[1733538789822,1.04743,3998.0,3997.6,3.2078]
[1733538790014,0.8726,3998.0,3997.6,3.2078]
[1733538790218,0.17483,3997.9,3997.6,3.2078]
[1733538790630,0.17484,3997.8,3997.6,3.2078]
[1733538791340,0.17484,3997.7,3997.6,3.2078]
[1733538791636,2.12547876,3997.7,3997.6,3.2078]
[1733538792435,2.12547876,3997.7,3997.0,3.2078]
[1733538792436,0.17487,3997.2,3997.0,3.2078]
[1733538792632,0.17487,3997.1,3997.0,3.2078]
[1733538792835,1.95063876,3997.3,3996.8,0.7997]
[1733538793031,0.8138,3997.2,3996.8,0.7997]
[1733538793237,0.17488,3996.8,3996.7,0.8155]
[1733538793627,0.17489,3996.7,3996.6,3.2078]
[1733538793832,0.1749,3996.5,3996.2,3.2078]
[1733538794135,0.1749,3996.3,3996.2,3.2078]
[1733538794342,1.95063876,3996.5,3995.6,3.2078]
[1733538794343,0.17492,3996.0,3995.6,3.2078]
[1733538794838,1.95063876,3996.1,3995.6,3.2078]
[1733538795440,0.17491,3996.1,3995.6,3.2078]
[1733538795638,0.8606,3996.2,3995.6,3.2078]
[1733538795831,0.17491,3996.1,3996.0,3.2078]
[1733538796631,1.03551,3996.2,3996.0,3.2078]
[1733538796835,0.8606,3996.2,3996.0,3.2078]
[1733538797042,0.17491,3996.1,3996.0,3.2078]
[1733538798844,0.8226,3996.4,3996.0,3.2078]
[1733538799044,0.672,3996.6,3996.0,3.38271]
[1733538799343,0.84689,3996.6,3996.1,0.8098]
[1733538799646,0.1749,3996.5,3996.1,0.8098]
[1733538800041,0.1749,3996.4,3996.1,0.8098]
[1733538800439,0.672,3996.6,3996.1,0.8098]
[1733538800649,0.1749,3996.4,3996.1,0.8098]
[1733538800838,2.74153876,3996.9,3996.1,0.8098]
[1733538801040,0.17489,3996.7,3996.3,0.1749]
[1733538801340,0.43711,3997.7,3996.6,3.2078]
[1733538801341,1.95063876,3997.7,3996.6,3.2078]
[1733538801547,0.17487,3997.2,3996.8,0.17488]
[1733538801742,0.17485,3997.5,3997.1,0.17487]
[1733538802042,0.17485,3997.6,3997.2,1.6316]
[1733538802234,1.95063876,3997.7,3997.2,1.6316]
[1733538802235,0.17485,3997.5,3997.2,1.6316]
[1733538802441,0.17485,3997.6,3997.3,0.17486]
[1733538802637,0.17485,3997.5,3997.4,0.867]
[1733538802936,0.17485,3997.5,3997.4,4.0748]
[1733538803936,0.17485,3997.7,3997.4,4.0748]
[1733538804145,0.17484,3997.8,3997.4,4.24965]
[1733538804449,0.17484,3997.8,3997.5,0.17485]
[1733538804645,0.17485,3997.6,3997.4,4.0748]
[1733538808146,0.17484,3997.7,3997.4,4.0748]
[1733538808648,0.17485,3997.5,3997.4,3.2078]
[1733538811945,0.17488,3996.9,3996.8,3.2078]
[1733538813946,0.17487,3997.0,3996.8,3.2078]
[1733538814141,0.17486,3997.3,3996.8,3.2078]
[1733538814442,0.17487,3997.2,3996.8,3.2078]
[1733538814650,0.672,3997.4,3996.8,3.2078]
[1733538814847,0.17487,3997.1,3996.8,3.2078]
[1733538815050,0.17488,3997.0,3996.8,3.2078]
[1733538815251,0.17488,3996.9,3996.8,3.2078]
[1733538815553,0.672,3997.4,3996.8,3.2078]
[1733538815947,0.17487,3997.1,3996.8,3.2078]
[1733538817152,0.17487,3997.0,3996.8,3.2078]
[1733538817349,0.672,3997.4,3996.8,3.2078]
[1733538817551,0.17487,3997.0,3996.8,3.2078]
[1733538818860,0.17488,3996.9,3996.8,3.2078]
[1733538819952,0.17487,3997.1,3996.8,3.2078]
[1733538820552,0.672,3997.4,3996.8,3.2078]
[1733538820754,0.17488,3996.9,3996.8,3.2078]
[1733538821356,0.672,3997.4,3996.8,3.2078]
[1733538821547,0.17487,3997.0,3996.8,3.2078]
[1733538822253,0.17488,3996.9,3996.8,3.2078]
[1733538822459,0.17488,3997.0,3996.8,3.2078]
[1733538822758,0.17488,3996.9,3996.8,3.2078]
[1733538825458,0.17488,3997.0,3996.8,3.38268]
[1733538825665,2.12723,3997.6,3997.4,0.17485]
[1733538825666,0.17485,3997.6,3997.4,0.17485]
[1733538825961,0.17484,3997.7,3997.5,2.63535]
[1733538826151,0.23436065,3997.6,3997.5,2.63535]
[1733538826951,0.17484,3997.7,3997.5,2.4605]
[1733538827163,0.17484,3997.7,3997.6,0.17485]
[1733538827352,0.23432885,3997.7,3997.5,2.63535]
[1733538827562,3.2078,3998.1,3997.5,2.63535]
[1733538827859,0.17485,3997.6,3997.5,2.4605]
[1733538828257,0.40918026,3997.6,3997.5,2.4605]
[1733538829261,0.23433026,3997.6,3997.5,2.4605]
[1733538830660,0.23433026,3997.6,3997.5,2.63535]
[1733538830854,0.17484,3997.8,3997.5,2.63535]
[1733538833157,3.2078,3998.1,3997.5,2.4605]
[1733538833361,0.23432466,3998.0,3997.5,2.4605]
[1733538833570,0.17479,3998.9,3998.1,0.17482]
[1733538833762,1.11088557,3998.8,3998.3,3.2078]
[1733538833964,0.23428557,3998.7,3998.4,1.6814]
[1733538834165,0.8766,3998.8,3998.4,1.85621]
[1733538834368,0.23426899,3998.7,3998.4,1.6814]
[1733538834565,1.95063876,3999.2,3998.4,1.6814]
[1733538834566,0.671,3999.3,3998.7,0.1748]
[1733538834768,0.23427541,3999.2,3998.8,0.8739]
[1733538835069,0.17479,3998.9,3998.8,0.8739]
[1733538837568,0.17479,3998.9,3998.4,1.6814]
[1733538837569,0.17481,3998.5,3998.4,1.6814]
[1733538838971,0.1748,3998.6,3998.4,1.6814]
[1733538840664,0.17481,3998.5,3998.4,1.6814]
[1733538844479,0.7923,3998.8,3998.4,1.6814]
[1733538844673,0.671,3999.1,3998.4,1.6814]
[1733538844873,0.23427201,3999.0,3998.4,1.6814]
[1733538845168,0.1748,3998.8,3998.4,1.6814]
[1733538845367,0.17479,3999.0,3998.7,3.2078]
[1733538845570,0.17479,3999.0,3998.8,0.8336]
[1733538845769,0.671,3999.1,3998.8,0.8336]
[1733538846067,3.2078,3999.5,3998.8,0.8336]
[1733538846267,3.38257,3999.5,3998.9,0.17479]
[1733538846474,3.2078,3999.5,3999.0,0.17478]
[1733538846775,3.2078,3999.5,3998.8,0.8336]
[1733538846983,0.17477,3999.4,3999.0,0.17478]
[1733538847668,3.2078,3999.5,3999.0,0.17478]
[1733538847869,0.17477,3999.3,3999.0,0.17478]
[1733538848268,3.2078,3999.5,3998.8,0.8336]
[1733538848469,0.17478,3999.1,3998.8,0.8336]
[1733538849373,3.2078,3999.5,3998.8,1.00839]
[1733538849574,0.17479,3998.9,3998.8,0.8336]
[1733538849872,5.15843876,3999.5,3998.8,0.8336]
[1733538849873,3.2078,3999.5,3998.8,0.8336]
[1733538850182,3.2078,3999.5,3998.8,1.00839]
[1733538850183,0.17478,3999.1,3998.8,1.00839]
[1733538850676,3.2078,3999.5,3998.8,1.00839]
[1733538850877,0.17479,3999.0,3998.8,0.8336]
[1733538851173,0.17479,3998.9,3998.8,0.8336]
[1733538854780,0.17479,3998.8,3998.7,3.2078]
[1733538857878,0.1748,3998.8,3998.4,2.65741]
[1733538858179,0.1748,3998.6,3998.4,2.4826]
[1733538859185,0.17481,3998.5,3998.4,2.4826]
[1733538860775,4.11289876,3999.1,3998.3,3.2078]
[1733538860776,0.17481,3998.4,3998.3,3.2078]
[1733538864486,0.40911328,3998.4,3998.3,3.2078]
[1733538864686,6.88373876,3999.1,3998.3,3.2078]
[1733538864887,0.1748,3998.7,3998.3,3.2078]
[1733538865087,0.1748,3998.7,3998.4,1.6853]
[1733538866888,3.67593876,3999.1,3998.4,5.58331595]
[1733538867094,0.2342645,3999.0,3998.4,5.58331595]
[1733538867284,0.1748,3998.7,3998.4,5.58331595]
[1733538868100,2.80513876,3999.1,3998.4,5.58331595]
[1733538868291,0.40905439,3999.0,3998.4,5.58331595]
[1733538868590,2.80513876,3999.1,3998.5,3.89801595]
[1733538868591,0.17479,3998.9,3998.5,3.89801595]
[1733538868786,0.1748,3998.8,3998.6,0.8686]
[1733538869092,0.1748,3998.7,3998.6,0.8686]
[1733538869280,0.17481,3998.5,3998.4,4.76261595]
[1733538869886,1.95063876,3999.1,3998.4,4.76261595]
[1733538870092,0.17479,3998.9,3998.5,3.89801595]
[1733538870293,0.17479,3998.9,3998.6,3.89801595]
[1733538870487,0.17479,3998.9,3998.7,1.6338]
[1733538870687,0.17479,3998.9,3998.7,5.53181595]
[1733538870992,0.17479,3998.9,3998.7,1.6338]
[1733538871388,0.17479,3998.9,3998.7,5.53181595]
[1733538871591,0.7903,3999.0,3998.7,5.53181595]
[1733538871793,0.96509,3999.0,3998.7,5.53181595]
[1733538872090,0.17479,3998.9,3998.7,5.53181595]
[1733538872895,0.7903,3999.0,3998.7,5.53181595]
[1733538873094,0.96509,3999.0,3998.7,5.53181595]
[1733538873489,0.96509,3999.0,3998.8,3.89801595]
[1733538873692,0.17479,3998.9,3998.7,1.6338]
[1733538873889,0.17479,3998.8,3998.7,1.6338]
[1733538874095,0.17479,3998.9,3998.7,1.6338]
[1733538874596,3.90003306,3999.0,3998.7,1.6338]
[1733538875500,0.23426353,3998.9,3998.8,3.2078]
[1733538876195,0.23426353,3998.9,3998.8,3.38259]
[1733538876390,2.93494306,3999.6,3999.4,0.17477]
[1733538876592,2.93494306,3999.7,3999.5,2.3764]
[1733538876793,0.23420234,3999.6,3999.5,2.55116]
[1733538878989,0.17475,3999.8,3999.5,2.55116]
[1733538879195,3.77294306,4000.1,3999.6,0.17476]
[1733538879500,0.17475,3999.8,3999.6,0.17476]
[1733538880197,0.17475,3999.9,3999.6,0.17476]
[1733538880496,2.93494306,4000.0,3999.5,2.3764]
[1733538880696,0.17475,3999.8,3999.5,2.55116]
[1733538881198,3.10969306,3999.9,3999.5,2.55116]
[1733538881697,0.23419601,3999.8,3999.5,2.55116]
[1733538881899,0.17475,3999.8,3999.5,2.3764]
[1733538882300,3.10969306,3999.9,3999.5,2.55116]
[1733538883503,0.17475,3999.9,3999.5,2.55116]
[1733538884003,2.93494306,4000.0,3999.5,2.55116]
[1733538884004,3.10968306,4000.0,3999.5,2.55116]
[1733538884504,3.10968306,4000.0,3999.5,2.3764]
[1733538884803,3.10968306,4000.0,3999.6,0.17476]
[1733538885704,3.10968306,4000.0,3999.5,2.3764]
[1733538885705,0.17475,3999.9,3999.5,2.55116]
[1733538885898,3.10968306,4000.0,3999.6,0.17476]
[1733538886104,0.17475,3999.9,3999.5,2.55116]
[1733538887110,0.17475,3999.9,3999.6,0.17476]
[1733538887299,0.17475,3999.9,3999.5,2.55116]
[1733538887499,3.77294306,4000.1,3999.5,2.3764]
[1733538887700,3.77294306,4000.1,3999.8,3.2078]
[1733538888001,3.90718306,4000.2,3999.8,3.38255]
[1733538888907,0.97224,4000.2,3999.8,3.38255]
[1733538889103,0.97224,4000.2,3999.8,7.28056595]
[1733538889302,0.97224,4000.2,3999.8,3.38255]
[1733538889505,0.17474,4000.1,3999.8,3.2078]
[1733538889805,0.7975,4000.2,3999.8,3.2078]
[1733538890009,0.17474,4000.0,3999.8,3.2078]
[1733538890806,0.7975,4000.2,3999.8,3.2078]
[1733538891106,0.17474,4000.1,3999.8,3.2078]
[1733538892202,0.7975,4000.2,3999.8,3.2078]
[1733538892405,0.17475,3999.9,3999.8,3.2078]
[1733538892598,1.07432801,3999.9,3999.8,3.2078]
[1733538896103,0.89957801,3999.9,3999.8,3.2078]
[1733538896811,1.07432801,3999.9,3999.8,3.2078]
[1733538897704,1.30852292,3999.9,3999.8,3.2078]
[1733538899807,1.13377292,3999.9,3999.8,3.2078]
[1733538900909,1.30852292,3999.9,3999.8,3.2078]
[1733538901611,1.13377292,3999.9,3999.8,3.2078]
[1733538902213,1.13377292,3999.9,3999.8,3.38255]
[1733538902511,0.23419491,3999.9,3999.8,3.38255]
[1733538902814,1.07430801,4000.2,3999.9,0.17474]
[1733538903009,0.40890951,4000.1,3999.8,3.38255]
[1733538903205,0.23416951,4000.0,3999.9,0.17475]
[1733538903717,0.23417306,4000.1,4000.0,0.17474]
[1733538903917,2.93494306,4000.3,4000.0,0.89957801]
[1733538904111,3.10966306,4000.6,4000.4,0.17472]
[1733538904418,3.10966306,4000.6,4000.5,0.8371]
[1733538904618,3.10965306,4000.7,4000.5,1.01182]
[1733538904812,2.93494306,4000.7,4000.5,0.8371]
[1733538905008,0.17472,4000.6,4000.5,0.8371]
[1733538905615,2.93494306,4000.8,4000.5,0.8371]
[1733538905913,2.93494306,4001.1,4000.5,0.8371]
[1733538906220,0.1747,4001.0,4000.6,0.89957801]
[1733538906417,0.1747,4000.9,4000.7,0.17471]
[1733538906617,0.1747,4000.9,4000.7,1.03191]
[1733538906818,0.17471,4000.8,4000.7,0.8572]
[1733538907917,0.1747,4000.9,4000.7,1.03191]
[1733538908107,3.83452107,4001.1,4000.7,0.8572]
[1733538908310,1.07426801,4001.1,4001.0,3.2078]
[1733538909421,0.17469,4001.1,4001.0,3.2078]
[1733538910110,2.93494306,4001.8,4001.0,9.77737801]
[1733538910311,4.89157176,4002.3,4001.7,4.10737801]
[1733538910312,2.93494306,4002.3,4001.7,4.10737801]
[1733538910617,0.17466,4001.9,4001.8,1.1623]
[1733538911113,3.2078,4002.4,4001.8,1.1623]
[1733538911319,0.5965,4002.7,4001.8,1.1623]
[1733538911612,0.17466,4001.9,4001.8,1.1623]
[1733538911917,0.89957801,4002.5,4001.8,1.1623]
[1733538912110,0.17465,4002.1,4001.8,1.1623]
[1733538912315,0.1746,4003.4,4003.0,0.17461]
[1733538912613,0.17459,4003.4,4003.1,3.7771]
[1733538912913,0.572,4003.9,4003.1,3.7771]
[1733538913127,0.17459,4003.5,4003.1,3.7771]
[1733538913314,0.572,4003.9,4003.1,3.7771]
[1733538913514,0.17459,4003.6,4003.1,3.7771]
[1733538913716,0.17458,4003.7,4003.1,3.7771]
[1733538913919,0.572,4003.9,4003.1,3.7771]
[1733538914216,0.23399894,4003.8,4003.1,3.7771]
[1733538914413,0.572,4003.9,4003.1,3.7771]
[1733538914414,0.17459,4003.4,4003.1,3.7771]
[1733538914615,0.1746,4003.3,4003.1,3.7771]
[1733538915112,0.572,4003.9,4003.1,3.7771]
[1733538915314,0.17459,4003.4,4003.1,3.7771]
[1733538915514,0.17458,4003.8,4003.2,0.599]
[1733538915824,0.2339993,4003.7,4003.2,0.599]
[1733538916024,0.17458,4003.8,4003.2,0.599]
[1733538916312,0.74657,4003.9,4003.2,0.7736]
[1733538916515,0.74657,4003.9,4003.3,0.1746]
[1733538916709,0.572,4003.9,4003.3,0.1746]
[1733538916915,3.2078,4004.0,4003.6,0.17458]
[1733538917611,3.2078,4004.0,4003.4,1.94468445]
[1733538917812,3.2078,4004.0,4003.5,0.17459]
[1733538918013,3.38237,4004.0,4003.5,0.17459]
[1733538918216,3.2078,4004.0,4003.4,1.94468445]
[1733538918720,0.1746,4003.4,4003.2,0.599]
[1733538918918,0.1746,4003.3,4003.2,0.599]
[1733538919109,0.5919,4003.9,4003.2,0.599]
[1733538919515,0.17459,4003.5,4003.2,0.599]
[1733538919711,0.5919,4003.9,4003.2,0.599]
[1733538920020,0.17459,4003.4,4003.2,0.599]
[1733538922517,0.1746,4003.3,4003.2,0.599]
[1733538922718,3.2078,4004.0,4003.2,0.599]
[1733538922923,0.1746,4003.3,4003.2,0.599]
[1733538924625,3.2078,4004.0,4003.2,0.599]
[1733538924923,0.17458,4003.7,4003.6,3.2078]
[1733538931622,0.6222,4004.0,4003.0,3.2078]
[1733538931623,3.2078,4003.9,4003.0,3.2078]
[1733538931828,0.17461,4003.1,4003.0,3.2078]
[1733538933521,0.17462,4002.8,4002.7,0.586]
[1733538933724,0.17465,4002.2,4002.1,0.5977]
[1733538934032,0.17465,4002.2,4002.1,1.212]
[1733538934835,0.6195,4002.7,4001.6,2.86325082]
[1733538934836,0.17467,4001.7,4001.6,0.669]
[1733538935230,0.5772,4002.1,4001.5,3.2078]
[1733538935432,0.17467,4001.6,4001.5,3.2078]
[1733538937229,0.1747,4000.9,4000.1,7.709026]
[1733538937428,2.11940445,4000.6,4000.1,7.709026]
[1733538937631,0.17472,4000.4,4000.1,7.709026]
[1733538938632,0.17474,4000.0,3999.9,3.2078]
[1733538939330,2.61368445,4000.6,3999.6,3.2078]
[1733538939529,0.17475,3999.7,3999.6,3.2078]
[1733538939830,2.61368445,4000.6,3999.6,3.2078]
[1733538940029,0.17475,3999.7,3999.6,3.2078]
[1733538949243,0.17473,4000.0,3999.6,3.2078]
[1733538949441,3.2078,4000.7,3999.6,8.2078]
[1733538949640,0.17473,4000.1,4000.0,3.2078]
[1733538958254,0.17473,4000.1,4000.0,3.38253]